[Event "Early-Titled-Tuesday-Blitz-April-23-2024"]
[Site "Chess.com"]
[Date "2024.04.23"]
[Round "6"]
[White "NovakRatko"]
[Black "Orest_Vovk"]
[Result "1-0"]
[WhiteElo "2391"]
[BlackElo "2531"]
[TimeControl "180+1"]
[EndTime "9:08:40 PDT"]
[Termination "NovakRatko won on time"]

1. d4 {[%clk 0:02:54]} 1... h6 {[%clk 0:02:54.1]} 2. c4 {[%clk 0:02:53.7]} 2...
g5 {[%clk 0:02:52.7]} 3. Nc3 {[%clk 0:02:53.8]} 3... Bg7 {[%clk 0:02:52.3]} 4.
e4 {[%clk 0:02:53.9]} 4... c5 {[%clk 0:02:51.4]} 5. d5 {[%clk 0:02:53.8]} 5...
Bxc3+ {[%clk 0:02:51]} 6. bxc3 {[%clk 0:02:53.9]} 6... d6 {[%clk 0:02:51.5]} 7.
f4 {[%clk 0:02:53.9]} 7... Qa5 {[%clk 0:02:50.9]} 8. Qd3 {[%clk 0:02:52]} 8...
Nd7 {[%clk 0:02:47.3]} 9. fxg5 {[%clk 0:02:46.5]} 9... Ne5 {[%clk 0:02:46.5]}
10. Qc2 {[%clk 0:02:46.6]} 10... hxg5 {[%clk 0:02:44.5]} 11. Bxg5 {[%clk
0:02:46.5]} 11... Rh5 {[%clk 0:02:40.5]} 12. Bf4 {[%clk 0:02:41.3]} 12... Nf6
{[%clk 0:02:40.3]} 13. Be2 {[%clk 0:02:41.2]} 13... Bg4 {[%clk 0:02:30.1]} 14.
Bxg4 {[%clk 0:02:31.6]} 14... Nexg4 {[%clk 0:02:26.7]} 15. Ne2 {[%clk
0:02:31.4]} 15... O-O-O {[%clk 0:02:23.7]} 16. h3 {[%clk 0:02:29.8]} 16... Rg8
{[%clk 0:02:20.8]} 17. Ng3 {[%clk 0:02:04.5]} 17... Ne3 {[%clk 0:02:13.7]} 18.
Bxe3 {[%clk 0:01:55.9]} 18... Rxg3 {[%clk 0:02:12.7]} 19. Kf2 {[%clk 0:01:55.9]}
19... Rxe3 {[%clk 0:01:39.6]} 20. Kxe3 {[%clk 0:01:54.9]} 20... Re5 {[%clk
0:01:38.6]} 21. Rhe1 {[%clk 0:01:50.6]} 21... Nxe4 {[%clk 0:01:37.6]} 22. Kf3
{[%clk 0:01:50.1]} 22... f5 {[%clk 0:01:36.7]} 23. g4 {[%clk 0:01:41.3]} 23...
Qd8 {[%clk 0:00:47.1]} 24. gxf5 {[%clk 0:01:17.3]} 24... Qf8 {[%clk 0:00:43.6]}
25. Qxe4 {[%clk 0:01:11.2]} 25... Rxe4 {[%clk 0:00:38.5]} 26. Kxe4 {[%clk
0:01:12.1]} 26... Qh8 {[%clk 0:00:35.4]} 27. Re3 {[%clk 0:00:55.9]} 27... Qe5+
{[%clk 0:00:32.5]} 28. Kd3 {[%clk 0:00:55.3]} 28... Qxf5+ {[%clk 0:00:33.4]} 29.
Kd2 {[%clk 0:00:54.1]} 29... Qf4 {[%clk 0:00:23.7]} 30. Kd3 {[%clk 0:00:52.4]}
30... Qf5+ {[%clk 0:00:17.1]} 31. Kd2 {[%clk 0:00:49.3]} 31... Qf2+ {[%clk
0:00:14.7]} 32. Kd3 {[%clk 0:00:49.4]} 32... b5 {[%clk 0:00:08.6]} 33. cxb5
{[%clk 0:00:43.8]} 33... c4+ {[%clk 0:00:08.8]} 34. Kd4 {[%clk 0:00:44.1]} 34...
Qd2+ {[%clk 0:00:03]} 35. Ke4 {[%clk 0:00:44.4]} 35... Qc2+ {[%clk 0:00:02.8]}
36. Kf3 {[%clk 0:00:42.9]} 36... Qf5+ {[%clk 0:00:02.5]} 37. Ke2 {[%clk
0:00:42.7]} 37... Qxd5 {[%clk 0:00:02.4]} 38. Rxe7 {[%clk 0:00:33]} 38... Qg2+
{[%clk 0:00:02.1]} 39. Kd1 {[%clk 0:00:23.2]} 39... Qf3+ {[%clk 0:00:02.4]} 40.
Re2 {[%clk 0:00:20]} 40... Qf1+ {[%clk 0:00:01.9]} 41. Re1 {[%clk 0:00:19.9]}
41... Qf3+ {[%clk 0:00:02]} 42. Kc2 {[%clk 0:00:16.9]} 1-0

[Event "Early-Titled-Tuesday-Blitz-April-23-2024"]
[Site "Chess.com"]
[Date "2024.04.23"]
[Round "6"]
[White "Brave_spirit12"]
[Black "Djager97"]
[Result "1-0"]
[WhiteElo "2722"]
[BlackElo "2550"]
[TimeControl "180+1"]
[EndTime "9:08:41 PDT"]
[Termination "Brave_spirit12 won by resignation"]

1. e4 {[%clk 0:03:00.9]} 1... e5 {[%clk 0:03:00]} 2. Nf3 {[%clk 0:02:54]} 2...
Nc6 {[%clk 0:02:59.9]} 3. d4 {[%clk 0:02:44.7]} 3... exd4 {[%clk 0:03:00.8]} 4.
Nxd4 {[%clk 0:02:45.2]} 4... Nf6 {[%clk 0:03:00.9]} 5. Nxc6 {[%clk 0:02:32.2]}
5... bxc6 {[%clk 0:03:01.8]} 6. e5 {[%clk 0:02:32.9]} 6... Qe7 {[%clk
0:03:02.2]} 7. Qe2 {[%clk 0:02:33.5]} 7... Nd5 {[%clk 0:03:02.9]} 8. c4 {[%clk
0:02:34]} 8... Ba6 {[%clk 0:03:02.4]} 9. h4 {[%clk 0:02:34.6]} 9... Nb6 {[%clk
0:02:43.2]} 10. b3 {[%clk 0:02:32.9]} 10... O-O-O {[%clk 0:02:29.5]} 11. g3
{[%clk 0:02:25.3]} 11... d5 {[%clk 0:02:28]} 12. exd6 {[%clk 0:01:45.9]} 12...
cxd6 {[%clk 0:02:27.9]} 13. Qxe7 {[%clk 0:01:43.5]} 13... Bxe7 {[%clk
0:02:27.7]} 14. Bb2 {[%clk 0:01:44.2]} 14... Rhe8 {[%clk 0:02:24.2]} 15. Bh3+
{[%clk 0:01:44.7]} 15... Kc7 {[%clk 0:02:23.6]} 16. O-O {[%clk 0:01:45.6]} 16...
d5 {[%clk 0:01:59.4]} 17. Bxg7 {[%clk 0:01:29.7]} 17... dxc4 {[%clk 0:01:56]}
18. bxc4 {[%clk 0:01:28.2]} 18... Bxc4 {[%clk 0:01:54.1]} 19. Rc1 {[%clk
0:01:26.2]} 19... Bxh4 {[%clk 0:01:43.2]} 20. Na3 {[%clk 0:01:18.9]} 20... Bd5
{[%clk 0:01:32.6]} 21. Nc2 {[%clk 0:00:38.6]} 21... Bg5 {[%clk 0:01:18.1]} 22.
Re1 {[%clk 0:00:31.1]} 22... h5 {[%clk 0:01:15.9]} 23. Nb4 {[%clk 0:00:27.7]}
23... Bf3 {[%clk 0:01:10.5]} 24. Na6+ {[%clk 0:00:26.5]} 24... Kb7 {[%clk
0:01:08.4]} 25. Nc5+ {[%clk 0:00:27.1]} 25... Ka8 {[%clk 0:01:09.1]} 26. a4
{[%clk 0:00:21.3]} 26... Nd5 {[%clk 0:01:06.9]} 27. Rxe8 {[%clk 0:00:19]} 27...
Rxe8 {[%clk 0:01:06.8]} 28. Bd7 {[%clk 0:00:19.9]} 28... Re2 {[%clk 0:00:46.5]}
29. Bxc6+ {[%clk 0:00:16.5]} 29... Kb8 {[%clk 0:00:47]} 30. Na6+ {[%clk
0:00:16.8]} 30... Kc8 {[%clk 0:00:47]} 31. Rb1 {[%clk 0:00:17.3]} 31... Nb6
{[%clk 0:00:43.6]} 32. Bxf3 {[%clk 0:00:16.3]} 32... Ra2 {[%clk 0:00:37.5]} 33.
Nc5 {[%clk 0:00:15.8]} 33... Be7 {[%clk 0:00:36.8]} 34. Nd3 {[%clk 0:00:10.6]}
34... Rxa4 {[%clk 0:00:35.6]} 35. Rc1+ {[%clk 0:00:11.1]} 35... Kd8 {[%clk
0:00:35.5]} 36. Ne5 {[%clk 0:00:10.2]} 36... f6 {[%clk 0:00:34.6]} 37. Nc6+
{[%clk 0:00:10.2]} 37... Kd7 {[%clk 0:00:34.8]} 38. Nxe7 {[%clk 0:00:07.2]}
38... Kxe7 {[%clk 0:00:35.7]} 39. Bxh5 {[%clk 0:00:07.5]} 39... Nd5 {[%clk
0:00:34.1]} 40. Re1+ {[%clk 0:00:07.8]} 40... Kd6 {[%clk 0:00:33.9]} 41. Bf3
{[%clk 0:00:07.9]} 41... Nb4 {[%clk 0:00:22.4]} 42. Bxf6 {[%clk 0:00:06.7]}
42... Nc2 {[%clk 0:00:22.7]} 43. Bd1 {[%clk 0:00:05.6]} 43... Nxe1 {[%clk
0:00:18.3]} 44. Bxa4 {[%clk 0:00:06.5]} 44... a5 {[%clk 0:00:17.3]} 45. Bc3
{[%clk 0:00:05.8]} 1-0

[Event "Early-Titled-Tuesday-Blitz-April-23-2024"]
[Site "Chess.com"]
[Date "2024.04.23"]
[Round "6"]
[White "lamomiajunior"]
[Black "ural58"]
[Result "1-0"]
[WhiteElo "2738"]
[BlackElo "2565"]
[TimeControl "180+1"]
[EndTime "9:08:43 PDT"]
[Termination "lamomiajunior won by resignation"]

1. d4 {[%clk 0:03:00.9]} 1... e6 {[%clk 0:02:56.7]} 2. Nc3 {[%clk 0:03:01.5]}
2... Bb4 {[%clk 0:02:53.2]} 3. Bf4 {[%clk 0:02:59.6]} 3... Nf6 {[%clk
0:02:42.2]} 4. Qd3 {[%clk 0:02:55.9]} 4... b6 {[%clk 0:02:37.9]} 5. a3 {[%clk
0:02:45.8]} 5... Ba6 {[%clk 0:02:36.8]} 6. Qg3 {[%clk 0:02:45.3]} 6... Nh5
{[%clk 0:02:24.8]} 7. Qf3 {[%clk 0:02:44.6]} 7... Nxf4 {[%clk 0:02:23.7]} 8.
axb4 {[%clk 0:02:42.9]} 8... Nd5 {[%clk 0:02:04.9]} 9. Nxd5 {[%clk 0:02:42.8]}
9... exd5 {[%clk 0:02:04.8]} 10. Qxd5 {[%clk 0:02:43.7]} 10... c6 {[%clk
0:02:04.9]} 11. Qe5+ {[%clk 0:02:43.7]} 11... Kf8 {[%clk 0:02:04.6]} 12. Qd6+
{[%clk 0:02:39.4]} 12... Qe7 {[%clk 0:02:03.2]} 13. Qxe7+ {[%clk 0:02:39.3]}
13... Kxe7 {[%clk 0:02:02.8]} 14. g3 {[%clk 0:02:38.6]} 14... Re8 {[%clk
0:02:00.6]} 15. Bg2 {[%clk 0:02:38.9]} 15... Kd8 {[%clk 0:02:00.3]} 16. e3
{[%clk 0:02:38.5]} 16... Kc7 {[%clk 0:02:00.2]} 17. Kd2 {[%clk 0:02:39.1]} 17...
Bb7 {[%clk 0:01:59.3]} 18. Ne2 {[%clk 0:02:38.5]} 18... d6 {[%clk 0:01:58.6]}
19. Nc3 {[%clk 0:02:37.9]} 19... Nd7 {[%clk 0:01:57.8]} 20. b5 {[%clk 0:02:38]}
20... c5 {[%clk 0:01:54.3]} 21. Nd5+ {[%clk 0:02:38.3]} 21... Kb8 {[%clk
0:01:53.4]} 22. Nf4 {[%clk 0:02:27.8]} 22... Bxg2 {[%clk 0:01:52.2]} 23. Nxg2
{[%clk 0:02:28.7]} 23... Kb7 {[%clk 0:01:43]} 24. Rhe1 {[%clk 0:02:28.1]} 24...
a5 {[%clk 0:01:42.8]} 25. Nf4 {[%clk 0:02:23.9]} 25... Nf6 {[%clk 0:01:40.6]}
26. f3 {[%clk 0:02:24]} 26... g5 {[%clk 0:01:39.2]} 27. Nd3 {[%clk 0:02:19.4]}
27... g4 {[%clk 0:01:37.9]} 28. Rf1 {[%clk 0:02:14.8]} 28... Re7 {[%clk
0:01:36.2]} 29. fxg4 {[%clk 0:02:09.2]} 29... Nxg4 {[%clk 0:01:35.4]} 30. Rae1
{[%clk 0:02:05]} 30... Rae8 {[%clk 0:01:34.8]} 31. e4 {[%clk 0:01:55.4]} 31...
cxd4 {[%clk 0:01:32.7]} 32. h3 {[%clk 0:01:49.1]} 32... Ne3 {[%clk 0:01:32.5]}
33. Rf6 {[%clk 0:01:49.3]} 33... Rxe4 {[%clk 0:01:26.1]} 34. Rxf7+ {[%clk
0:01:48.7]} 34... R8e7 {[%clk 0:01:26.2]} 35. Rxe7+ {[%clk 0:01:48.5]} 35...
Rxe7 {[%clk 0:01:26.1]} 36. b3 {[%clk 0:01:47.9]} 36... Kc7 {[%clk 0:01:16.7]}
37. Nf4 {[%clk 0:01:48.1]} 37... Kd7 {[%clk 0:01:16.5]} 38. Kd3 {[%clk
0:01:45.9]} 38... Rg7 {[%clk 0:01:10.7]} 39. Ne2 {[%clk 0:01:38.3]} 39... h5
{[%clk 0:01:09.5]} 40. Rg1 {[%clk 0:01:20.2]} 40... Nf5 {[%clk 0:01:08]} 41. g4
{[%clk 0:01:14.9]} 41... hxg4 {[%clk 0:01:07.5]} 42. hxg4 {[%clk 0:01:15.8]}
42... Nh4 {[%clk 0:01:07.2]} 43. Nxd4 {[%clk 0:01:14.4]} 43... Rg5 {[%clk
0:01:02.8]} 44. Ke3 {[%clk 0:01:10.2]} 44... Re5+ {[%clk 0:01:01.8]} 45. Kf2
{[%clk 0:01:04.9]} 45... Rd5 {[%clk 0:00:56.8]} 46. c3 {[%clk 0:01:02.8]} 46...
Rc5 {[%clk 0:00:56.1]} 47. c4 {[%clk 0:00:53.5]} 47... a4 {[%clk 0:00:51.4]} 48.
Rh1 {[%clk 0:00:51.6]} 48... Ng6 {[%clk 0:00:50.8]} 49. Rh7+ {[%clk 0:00:48.4]}
49... Ke8 {[%clk 0:00:49.8]} 50. Ne6 {[%clk 0:00:44]} 50... Re5 {[%clk
0:00:46.2]} 51. Nc7+ {[%clk 0:00:44.3]} 51... Kd8 {[%clk 0:00:42]} 52. bxa4
{[%clk 0:00:43.3]} 52... Nf4 {[%clk 0:00:37.9]} 53. Na8 {[%clk 0:00:40.8]} 53...
Nd3+ {[%clk 0:00:36.9]} 54. Kf3 {[%clk 0:00:38.8]} 54... Ne1+ {[%clk 0:00:36.9]}
55. Kg3 {[%clk 0:00:38.6]} 55... Re3+ {[%clk 0:00:37]} 56. Kf2 {[%clk 0:00:39]}
56... Nc2 {[%clk 0:00:35]} 57. Nxb6 {[%clk 0:00:38]} 57... Re4 {[%clk
0:00:34.1]} 58. a5 {[%clk 0:00:37]} 1-0

[Event "Early-Titled-Tuesday-Blitz-April-23-2024"]
[Site "Chess.com"]
[Date "2024.04.23"]
[Round "6"]
[White "Aryan_Tamadon"]
[Black "Andrey_Klymchuk"]
[Result "0-1"]
[WhiteElo "2627"]
[BlackElo "2695"]
[TimeControl "180+1"]
[EndTime "9:08:43 PDT"]
[Termination "Andrey_Klymchuk won by resignation"]

1. Nf3 {[%clk 0:03:00.9]} 1... g6 {[%clk 0:02:58.4]} 2. g3 {[%clk 0:02:57.9]}
2... b6 {[%clk 0:02:57.9]} 3. Bg2 {[%clk 0:02:57.1]} 3... Bb7 {[%clk 0:02:58.3]}
4. O-O {[%clk 0:02:57.5]} 4... c5 {[%clk 0:02:58.4]} 5. a4 {[%clk 0:02:56.7]}
5... Nc6 {[%clk 0:02:56.8]} 6. Na3 {[%clk 0:02:56.7]} 6... Bg7 {[%clk
0:02:56.2]} 7. Rb1 {[%clk 0:02:53.3]} 7... Nf6 {[%clk 0:02:51.1]} 8. c3 {[%clk
0:02:53.7]} 8... O-O {[%clk 0:02:49.4]} 9. b4 {[%clk 0:02:50.4]} 9... cxb4
{[%clk 0:02:47.6]} 10. cxb4 {[%clk 0:02:51.3]} 10... Rc8 {[%clk 0:02:47.3]} 11.
d3 {[%clk 0:02:46.4]} 11... Nd5 {[%clk 0:02:42.8]} 12. Bd2 {[%clk 0:02:38.8]}
12... Nc3 {[%clk 0:02:40.6]} 13. Bxc3 {[%clk 0:02:32.6]} 13... Bxc3 {[%clk
0:02:41.5]} 14. b5 {[%clk 0:02:11.2]} 14... Na5 {[%clk 0:02:37.3]} 15. d4 {[%clk
0:01:57.3]} 15... Be4 {[%clk 0:02:33.6]} 16. Rc1 {[%clk 0:01:52.3]} 16... Bb2
{[%clk 0:02:33.1]} 17. Rxc8 {[%clk 0:01:49.4]} 17... Qxc8 {[%clk 0:02:34]} 18.
Nb1 {[%clk 0:01:46.8]} 18... Qc2 {[%clk 0:02:21.9]} 19. Nbd2 {[%clk 0:01:36.1]}
19... Qxd1 {[%clk 0:02:19.5]} 20. Rxd1 {[%clk 0:01:31.8]} 20... Bc2 {[%clk
0:02:15.8]} 21. Re1 {[%clk 0:01:25.6]} 21... d6 {[%clk 0:02:12.1]} 22. e3 {[%clk
0:01:04.3]} 22... Bxa4 {[%clk 0:02:07.1]} 23. Rb1 {[%clk 0:00:37.5]} 23... Bc3
{[%clk 0:01:59.1]} 24. Ne4 {[%clk 0:00:27.5]} 24... Bc2 {[%clk 0:01:58.3]} 25.
Nxc3 {[%clk 0:00:26.7]} 25... Bxb1 {[%clk 0:01:58.5]} 26. Nxb1 {[%clk
0:00:27.6]} 26... Rc8 {[%clk 0:01:58]} 27. Nfd2 {[%clk 0:00:16.4]} 27... Nc4
{[%clk 0:01:51.8]} 28. Nxc4 {[%clk 0:00:06.6]} 28... Rxc4 {[%clk 0:01:52.7]} 29.
Bf1 {[%clk 0:00:06.8]} 29... Rc1 {[%clk 0:01:45.8]} 30. Nd2 {[%clk 0:00:05.7]}
30... f5 {[%clk 0:01:43.1]} 31. Kg2 {[%clk 0:00:05.7]} 31... Kg7 {[%clk
0:01:42.3]} 32. Nb3 {[%clk 0:00:01.9]} 32... Rc3 {[%clk 0:01:37.9]} 33. Nd2
{[%clk 0:00:02.5]} 33... e5 {[%clk 0:01:35]} 34. dxe5 {[%clk 0:00:02.7]} 34...
dxe5 {[%clk 0:01:35.9]} 35. Nc4 {[%clk 0:00:03.4]} 35... Kf6 {[%clk 0:01:35.1]}
36. Nd6 {[%clk 0:00:04]} 36... Ke6 {[%clk 0:01:32.8]} 37. Nc4 {[%clk 0:00:04.4]}
37... g5 {[%clk 0:01:31.8]} 38. h3 {[%clk 0:00:04]} 38... h5 {[%clk 0:01:31.4]}
39. Nd2 {[%clk 0:00:04.5]} 39... g4 {[%clk 0:01:27.2]} 40. hxg4 {[%clk
0:00:04.9]} 40... hxg4 {[%clk 0:01:27.2]} 41. e4 {[%clk 0:00:03.2]} 41... f4
{[%clk 0:01:26.1]} 42. gxf4 {[%clk 0:00:03.5]} 42... exf4 {[%clk 0:01:26.6]} 43.
Nc4 {[%clk 0:00:03.6]} 43... Rb3 {[%clk 0:01:24.6]} 44. Nd2 {[%clk 0:00:02.8]}
44... Rb4 {[%clk 0:01:21.9]} 45. f3 {[%clk 0:00:02.7]} 45... g3 {[%clk
0:01:21.8]} 46. Kh3 {[%clk 0:00:02.7]} 46... Rb2 {[%clk 0:01:20.4]} 47. Nc4
{[%clk 0:00:03.1]} 47... Rc2 {[%clk 0:01:16.9]} 48. Kg4 {[%clk 0:00:02.1]} 48...
g2 {[%clk 0:01:13.9]} 49. Bxg2 {[%clk 0:00:02.8]} 49... Rxc4 {[%clk 0:01:13.9]}
50. Kxf4 {[%clk 0:00:03.7]} 50... Rc1 {[%clk 0:01:12.6]} 51. Bh3+ {[%clk
0:00:04.3]} 51... Ke7 {[%clk 0:01:12.8]} 52. e5 {[%clk 0:00:04.3]} 52... Rb1
{[%clk 0:01:09.9]} 53. Ke4 {[%clk 0:00:02.4]} 53... Rxb5 {[%clk 0:01:09.9]} 54.
f4 {[%clk 0:00:03.1]} 54... a5 {[%clk 0:01:10.1]} 55. f5 {[%clk 0:00:03.6]}
55... a4 {[%clk 0:01:09.8]} 56. f6+ {[%clk 0:00:04.2]} 56... Kf7 {[%clk
0:01:09.9]} 57. Bd7 {[%clk 0:00:04.9]} 57... Ra5 {[%clk 0:01:05.6]} 58. Bc6
{[%clk 0:00:02.2]} 58... a3 {[%clk 0:01:05.3]} 59. Bd5+ {[%clk 0:00:02.9]} 59...
Rxd5 {[%clk 0:01:05.2]} 60. Kxd5 {[%clk 0:00:03.8]} 60... a2 {[%clk 0:01:05.7]}
61. e6+ {[%clk 0:00:03.1]} 61... Kxf6 {[%clk 0:01:05.5]} 62. e7 {[%clk
0:00:03.6]} 62... Kxe7 {[%clk 0:01:04.5]} 0-1

[Event "Early-Titled-Tuesday-Blitz-April-23-2024"]
[Site "Chess.com"]
[Date "2024.04.23"]
[Round "6"]
[White "RebelJohnny"]
[Black "ChessSG1"]
[Result "0-1"]
[WhiteElo "2567"]
[BlackElo "2426"]
[TimeControl "180+1"]
[EndTime "9:08:43 PDT"]
[Termination "ChessSG1 won by checkmate"]

1. e4 {[%clk 0:02:58.6]} 1... c5 {[%clk 0:03:00.2]} 2. Nf3 {[%clk 0:02:57.2]}
2... g6 {[%clk 0:03:00.7]} 3. d4 {[%clk 0:02:57.2]} 3... cxd4 {[%clk 0:03:01.6]}
4. Nxd4 {[%clk 0:02:58.1]} 4... Nc6 {[%clk 0:03:01.8]} 5. Nc3 {[%clk 0:02:58.5]}
5... Bg7 {[%clk 0:03:01.7]} 6. Be3 {[%clk 0:02:59.1]} 6... Nf6 {[%clk
0:03:02.2]} 7. Bc4 {[%clk 0:02:58.4]} 7... O-O {[%clk 0:03:02.1]} 8. Bb3 {[%clk
0:02:58.6]} 8... a5 {[%clk 0:03:02.5]} 9. O-O {[%clk 0:02:57.1]} 9... Nxd4
{[%clk 0:02:54.1]} 10. Bxd4 {[%clk 0:02:56.4]} 10... d6 {[%clk 0:02:54.6]} 11.
Qe2 {[%clk 0:02:49.1]} 11... Bd7 {[%clk 0:02:48.3]} 12. Rad1 {[%clk 0:02:43.3]}
12... a4 {[%clk 0:02:47.6]} 13. Bc4 {[%clk 0:02:43.4]} 13... Qa5 {[%clk
0:02:40.5]} 14. Nd5 {[%clk 0:02:24.8]} 14... Nxd5 {[%clk 0:02:29.2]} 15. exd5
{[%clk 0:02:25.7]} 15... Bxd4 {[%clk 0:02:16.2]} 16. Rxd4 {[%clk 0:02:26.6]}
16... Rfe8 {[%clk 0:02:13.3]} 17. a3 {[%clk 0:02:14.6]} 17... Qb6 {[%clk
0:02:13]} 18. c3 {[%clk 0:02:13.5]} 18... Qc5 {[%clk 0:02:10.8]} 19. Re1 {[%clk
0:02:08.5]} 19... b5 {[%clk 0:01:56.1]} 20. Ba2 {[%clk 0:02:07.6]} 20... e5
{[%clk 0:01:43.2]} 21. dxe6 {[%clk 0:02:01.8]} 21... Bxe6 {[%clk 0:01:43.7]} 22.
Re4 {[%clk 0:01:48.8]} 22... d5 {[%clk 0:01:44.1]} 23. Re5 {[%clk 0:01:41.9]}
23... Rad8 {[%clk 0:01:37.1]} 24. h4 {[%clk 0:01:34.5]} 24... h5 {[%clk
0:01:35.5]} 25. Qd2 {[%clk 0:01:27.6]} 25... Kg7 {[%clk 0:01:34.2]} 26. Bb1
{[%clk 0:01:16.3]} 26... Qd6 {[%clk 0:01:30.2]} 27. Qd4 {[%clk 0:01:08.8]} 27...
f6 {[%clk 0:01:26.8]} 28. R5e3 {[%clk 0:01:02.9]} 28... Bf7 {[%clk 0:01:26.7]}
29. Qd3 {[%clk 0:00:46.7]} 29... Rxe3 {[%clk 0:01:25.4]} 30. Rxe3 {[%clk
0:00:47.6]} 30... d4 {[%clk 0:01:25.3]} 31. cxd4 {[%clk 0:00:30.9]} 31... Qxd4
{[%clk 0:01:25]} 32. Qxd4 {[%clk 0:00:16.9]} 32... Rxd4 {[%clk 0:01:25.9]} 33.
Bd3 {[%clk 0:00:16.5]} 33... b4 {[%clk 0:01:21.1]} 34. axb4 {[%clk 0:00:09.7]}
34... Rxb4 {[%clk 0:01:22]} 35. Re2 {[%clk 0:00:10.4]} 35... Rxh4 {[%clk
0:01:22.1]} 36. g3 {[%clk 0:00:10]} 36... Rd4 {[%clk 0:01:21.5]} 37. Bb5 {[%clk
0:00:09.1]} 37... Rb4 {[%clk 0:01:19.1]} 38. Bc6 {[%clk 0:00:09.1]} 38... Bc4
{[%clk 0:01:01.6]} 39. Re4 {[%clk 0:00:06.7]} 39... f5 {[%clk 0:00:44.1]} 40.
Rd4 {[%clk 0:00:07]} 40... a3 {[%clk 0:00:32.5]} 41. bxa3 {[%clk 0:00:07.9]}
41... Rb1+ {[%clk 0:00:31.6]} 42. Kh2 {[%clk 0:00:08.5]} 42... Be6 {[%clk
0:00:26.9]} 43. a4 {[%clk 0:00:09.1]} 43... Kf6 {[%clk 0:00:25.5]} 44. a5 {[%clk
0:00:09]} 44... Ra1 {[%clk 0:00:25.7]} 45. Ba4 {[%clk 0:00:09.2]} 45... Ke5
{[%clk 0:00:21.3]} 46. Rb4 {[%clk 0:00:08.4]} 46... Bd5 {[%clk 0:00:21.7]} 47.
a6 {[%clk 0:00:08.4]} 47... Rh1# {[%clk 0:00:21.4]} 0-1

[Event "Early-Titled-Tuesday-Blitz-April-23-2024"]
[Site "Chess.com"]
[Date "2024.04.23"]
[Round "6"]
[White "ViIIagra"]
[Black "luckyswitchback"]
[Result "1-0"]
[WhiteElo "2932"]
[BlackElo "2723"]
[TimeControl "180+1"]
[EndTime "9:08:46 PDT"]
[Termination "ViIIagra won by checkmate"]

1. g3 {[%clk 0:03:00.9]} 1... d5 {[%clk 0:02:56.6]} 2. Bg2 {[%clk 0:03:01.4]}
2... e5 {[%clk 0:02:56.6]} 3. d3 {[%clk 0:03:01.5]} 3... c5 {[%clk 0:02:54.1]}
4. e4 {[%clk 0:03:00.7]} 4... d4 {[%clk 0:02:49.8]} 5. f4 {[%clk 0:03:01.1]}
5... Nc6 {[%clk 0:02:46.6]} 6. Nf3 {[%clk 0:03:01]} 6... Bd6 {[%clk 0:02:47.2]}
7. O-O {[%clk 0:02:59.7]} 7... Nge7 {[%clk 0:02:42.4]} 8. Na3 {[%clk 0:02:59.6]}
8... exf4 {[%clk 0:02:27.8]} 9. gxf4 {[%clk 0:02:58]} 9... f5 {[%clk 0:02:27.8]}
10. Nc4 {[%clk 0:02:58.1]} 10... fxe4 {[%clk 0:02:24.6]} 11. dxe4 {[%clk
0:02:57.1]} 11... O-O {[%clk 0:02:24.3]} 12. f5 {[%clk 0:02:24.3]} 12... Bc7
{[%clk 0:02:19.8]} 13. a4 {[%clk 0:02:23.2]} 13... b6 {[%clk 0:02:10.9]} 14. Ra3
{[%clk 0:02:22.3]} 14... Ba6 {[%clk 0:02:08.1]} 15. b3 {[%clk 0:01:58]} 15...
Kh8 {[%clk 0:01:57.7]} 16. Ng5 {[%clk 0:01:57.3]} 16... Ng8 {[%clk 0:01:19.1]}
17. Ne6 {[%clk 0:01:43.6]} 17... Qe7 {[%clk 0:01:11.7]} 18. Bg5 {[%clk 0:01:35]}
18... Qf7 {[%clk 0:00:57.8]} 19. Rf2 {[%clk 0:01:06.8]} 19... Rfe8 {[%clk
0:00:52.9]} 20. Nxc7 {[%clk 0:01:01.1]} 20... Qxc7 {[%clk 0:00:51.2]} 21. Bf4
{[%clk 0:00:53.8]} 21... Qd7 {[%clk 0:00:45.5]} 22. Nd6 {[%clk 0:00:50.2]} 22...
Rf8 {[%clk 0:00:41]} 23. b4 {[%clk 0:00:48.3]} 23... d3 {[%clk 0:00:30.1]} 24.
b5 {[%clk 0:00:47.7]} 24... dxc2 {[%clk 0:00:16.9]} 25. Rxc2 {[%clk 0:00:48.6]}
25... Nd4 {[%clk 0:00:13.8]} 26. bxa6 {[%clk 0:00:48.9]} 26... Nxc2 {[%clk
0:00:14]} 27. Qxc2 {[%clk 0:00:49.5]} 27... Rad8 {[%clk 0:00:13]} 28. e5 {[%clk
0:00:48.5]} 28... Qe7 {[%clk 0:00:12.1]} 29. Qe4 {[%clk 0:00:42.4]} 29... Nh6
{[%clk 0:00:11.6]} 30. f6 {[%clk 0:00:34.9]} 30... Qc7 {[%clk 0:00:07.7]} 31.
Rg3 {[%clk 0:00:34]} 31... Rg8 {[%clk 0:00:02.2]} 32. fxg7+ {[%clk 0:00:12.5]}
32... Rxg7 {[%clk 0:00:03.1]} 33. Bxh6 {[%clk 0:00:12.9]} 33... Rxg3 {[%clk
0:00:03]} 34. hxg3 {[%clk 0:00:13.8]} 34... c4 {[%clk 0:00:03.9]} 35. Bg5 {[%clk
0:00:13.9]} 35... c3 {[%clk 0:00:03.1]} 36. Bf6+ {[%clk 0:00:14.5]} 36... Kg8
{[%clk 0:00:03.2]} 37. Qg4+ {[%clk 0:00:14.8]} 37... Kf8 {[%clk 0:00:03.7]} 38.
Bxd8 {[%clk 0:00:15.1]} 38... Qxd8 {[%clk 0:00:03.1]} 39. Qf4+ {[%clk
0:00:14.9]} 39... Kg8 {[%clk 0:00:02.5]} 40. Bd5+ {[%clk 0:00:13.8]} 40... Kg7
{[%clk 0:00:02.3]} 41. Qf7+ {[%clk 0:00:13.4]} 41... Kh6 {[%clk 0:00:02.7]} 42.
Qf4+ {[%clk 0:00:12.3]} 42... Kg7 {[%clk 0:00:02.6]} 43. Qg4+ {[%clk 0:00:12.6]}
43... Kh8 {[%clk 0:00:02.7]} 44. Nf7# {[%clk 0:00:13.1]} 1-0